[Event "Late-Titled-Tuesday-Blitz-April-23-2024"]
[Site "Chess.com"]
[Date "2024.04.23"]
[Round "3"]
[White "Hakiki_satranc"]
[Black "martinmena"]
[Result "1-0"]
[WhiteElo "2396"]
[BlackElo "2152"]
[TimeControl "180+1"]
[EndTime "14:30:28 PDT"]
[Termination "Hakiki_satranc won by checkmate"]

1. d4 {[%clk 0:03:00.9]} 1... d5 {[%clk 0:02:58.5]} 2. c4 {[%clk 0:03:00.1]}
2... e6 {[%clk 0:02:56]} 3. Nf3 {[%clk 0:03:00.5]} 3... Nf6 {[%clk 0:02:53.2]}
4. Bg5 {[%clk 0:03:00.7]} 4... Be7 {[%clk 0:02:52.6]} 5. e3 {[%clk 0:02:59.9]}
5... O-O {[%clk 0:02:48.6]} 6. Qc2 {[%clk 0:02:52.7]} 6... Ne4 {[%clk
0:02:41.6]} 7. Bxe7 {[%clk 0:02:48.4]} 7... Qxe7 {[%clk 0:02:42.5]} 8. Nbd2
{[%clk 0:02:46.4]} 8... f5 {[%clk 0:02:41.4]} 9. Ne5 {[%clk 0:02:37.4]} 9... Nd7
{[%clk 0:02:36.9]} 10. Nxd7 {[%clk 0:02:31.1]} 10... Bxd7 {[%clk 0:02:13.9]} 11.
c5 {[%clk 0:02:17.5]} 11... a6 {[%clk 0:02:00]} 12. Nf3 {[%clk 0:02:06.7]} 12...
Bb5 {[%clk 0:01:56.3]} 13. Bd3 {[%clk 0:01:55.8]} 13... Bxd3 {[%clk 0:01:48.5]}
14. Qxd3 {[%clk 0:01:56.7]} 14... b6 {[%clk 0:01:47.1]} 15. cxb6 {[%clk
0:01:14.9]} 15... cxb6 {[%clk 0:01:48]} 16. O-O {[%clk 0:01:13.6]} 16... b5
{[%clk 0:01:23]} 17. Rac1 {[%clk 0:01:11.6]} 17... Rac8 {[%clk 0:01:21.1]} 18.
Ne5 {[%clk 0:01:07.8]} 18... Qb4 {[%clk 0:01:07.9]} 19. Qe2 {[%clk 0:00:58.4]}
19... Qd2 {[%clk 0:00:56.8]} 20. Qxd2 {[%clk 0:00:50.4]} 20... Nxd2 {[%clk
0:00:57.7]} 21. Rfd1 {[%clk 0:00:48.3]} 21... Nc4 {[%clk 0:00:56]} 22. Nd3
{[%clk 0:00:43.1]} 22... a5 {[%clk 0:00:40.3]} 23. b3 {[%clk 0:00:35]} 23... Nd6
{[%clk 0:00:33.4]} 24. Rc5 {[%clk 0:00:30.4]} 24... Ne4 {[%clk 0:00:19.3]} 25.
Rxc8 {[%clk 0:00:17.4]} 25... Rxc8 {[%clk 0:00:20.2]} 26. f3 {[%clk 0:00:17.9]}
26... Nc3 {[%clk 0:00:19.6]} 27. Rd2 {[%clk 0:00:17.6]} 27... Nb1 {[%clk
0:00:17.8]} 28. Rd1 {[%clk 0:00:16.2]} 28... Na3 {[%clk 0:00:14.6]} 29. Nc5
{[%clk 0:00:14.8]} 29... Kf7 {[%clk 0:00:12.7]} 30. Kf2 {[%clk 0:00:13.7]} 30...
b4 {[%clk 0:00:12.2]} 31. Rd2 {[%clk 0:00:11.8]} 31... Nb5 {[%clk 0:00:12.6]}
32. Nd7 {[%clk 0:00:09.7]} 32... Nc3 {[%clk 0:00:12.5]} 33. Ne5+ {[%clk
0:00:09.6]} 33... Ke7 {[%clk 0:00:12.3]} 34. Ke1 {[%clk 0:00:07.9]} 34... g6
{[%clk 0:00:12.4]} 35. Rc2 {[%clk 0:00:07.7]} 35... Rh8 {[%clk 0:00:11]} 36. h4
{[%clk 0:00:07.1]} 36... Rc8 {[%clk 0:00:08.1]} 37. a4 {[%clk 0:00:06.5]} 37...
bxa3 {[%clk 0:00:07]} 38. Rc1 {[%clk 0:00:02.8]} 38... a2 {[%clk 0:00:07.2]} 39.
Ra1 {[%clk 0:00:03.3]} 39... Rc7 {[%clk 0:00:06.5]} 40. Nd3 {[%clk 0:00:03.5]}
40... Rb7 {[%clk 0:00:06.2]} 41. Nc5 {[%clk 0:00:04.1]} 41... Rb5 {[%clk
0:00:06.1]} 42. Kd2 {[%clk 0:00:03.9]} 42... a4 {[%clk 0:00:02.8]} 43. Kxc3
{[%clk 0:00:02.5]} 43... axb3 {[%clk 0:00:02.9]} 44. Nxb3 {[%clk 0:00:03.1]}
44... Rb6 {[%clk 0:00:02.2]} 45. Rxa2 {[%clk 0:00:03.4]} 45... Rc6+ {[%clk
0:00:03.1]} 46. Kd3 {[%clk 0:00:03.4]} 46... Kf6 {[%clk 0:00:03.6]} 47. Ra7
{[%clk 0:00:02.8]} 47... Rb6 {[%clk 0:00:03.5]} 48. Nc5 {[%clk 0:00:03]} 48...
Rb2 {[%clk 0:00:03.5]} 49. Nd7+ {[%clk 0:00:02.6]} 49... Ke7 {[%clk 0:00:03.5]}
50. Ne5+ {[%clk 0:00:03.5]} 50... Ke8 {[%clk 0:00:03.3]} 51. Ra8+ {[%clk
0:00:03.5]} 51... Ke7 {[%clk 0:00:02.9]} 52. Ra7+ {[%clk 0:00:04.4]} 52... Kd6
{[%clk 0:00:02.7]} 53. Rd7# {[%clk 0:00:02.2]} 1-0

[Event "Late-Titled-Tuesday-Blitz-April-23-2024"]
[Site "Chess.com"]
[Date "2024.04.23"]
[Round "3"]
[White "AniJak"]
[Black "campochess"]
[Result "1/2-1/2"]
[WhiteElo "2385"]
[BlackElo "2153"]
[TimeControl "180+1"]
[EndTime "14:30:28 PDT"]
[Termination "Game drawn - insufficient material"]

1. e4 {[%clk 0:03:00.9]} 1... c5 {[%clk 0:02:58.9]} 2. Nf3 {[%clk 0:03:00.6]}
2... Nc6 {[%clk 0:02:59]} 3. d4 {[%clk 0:03:00.2]} 3... cxd4 {[%clk 0:02:59]} 4.
Nxd4 {[%clk 0:03:01.1]} 4... e5 {[%clk 0:02:56.2]} 5. Nb5 {[%clk 0:03:00.6]}
5... a6 {[%clk 0:02:56.5]} 6. Nd6+ {[%clk 0:02:59.3]} 6... Bxd6 {[%clk
0:02:56.3]} 7. Qxd6 {[%clk 0:03:00.2]} 7... Qe7 {[%clk 0:02:56.5]} 8. Qd1 {[%clk
0:02:57.3]} 8... Nf6 {[%clk 0:02:56.4]} 9. Nc3 {[%clk 0:02:57.3]} 9... d6 {[%clk
0:02:56.6]} 10. Bg5 {[%clk 0:02:56.7]} 10... Be6 {[%clk 0:02:56.6]} 11. Be2
{[%clk 0:02:53.2]} 11... Rd8 {[%clk 0:02:55.5]} 12. Nd5 {[%clk 0:02:45.9]} 12...
Bxd5 {[%clk 0:02:54.5]} 13. exd5 {[%clk 0:02:46.8]} 13... Nb8 {[%clk 0:02:54.5]}
14. O-O {[%clk 0:02:45.8]} 14... Nbd7 {[%clk 0:02:54.4]} 15. Kh1 {[%clk
0:02:40.5]} 15... h6 {[%clk 0:02:53.9]} 16. Bh4 {[%clk 0:02:39.6]} 16... Nf8
{[%clk 0:02:52.1]} 17. f4 {[%clk 0:02:32.2]} 17... Ng6 {[%clk 0:02:47.3]} 18.
fxe5 {[%clk 0:02:20.9]} 18... dxe5 {[%clk 0:02:12.8]} 19. Bxf6 {[%clk
0:02:17.5]} 19... gxf6 {[%clk 0:02:12.8]} 20. c4 {[%clk 0:02:17.4]} 20... b6
{[%clk 0:02:07.4]} 21. Bh5 {[%clk 0:02:11.9]} 21... Nf4 {[%clk 0:02:00.4]} 22.
Qf3 {[%clk 0:01:56.1]} 22... Rg8 {[%clk 0:01:54]} 23. g3 {[%clk 0:01:47.5]}
23... Nxh5 {[%clk 0:01:49.1]} 24. Qxh5 {[%clk 0:01:48.4]} 24... Rg6 {[%clk
0:01:48.5]} 25. Rae1 {[%clk 0:01:47.1]} 25... Rd6 {[%clk 0:01:45.3]} 26. Qf3
{[%clk 0:01:43.1]} 26... Kf8 {[%clk 0:01:40.5]} 27. b4 {[%clk 0:01:42.5]} 27...
Rd8 {[%clk 0:01:37.4]} 28. a3 {[%clk 0:01:41.7]} 28... Rc8 {[%clk 0:01:34.4]}
29. Re4 {[%clk 0:01:40.6]} 29... Kg7 {[%clk 0:01:31.3]} 30. Rd1 {[%clk
0:01:39.3]} 30... Qd6 {[%clk 0:01:27.2]} 31. Qf5 {[%clk 0:01:27.6]} 31... Rd8
{[%clk 0:01:16.9]} 32. Qf2 {[%clk 0:01:24.7]} 32... Qc7 {[%clk 0:01:08.4]} 33.
c5 {[%clk 0:01:21.3]} 33... bxc5 {[%clk 0:01:07.9]} 34. bxc5 {[%clk 0:01:21.3]}
34... f5 {[%clk 0:00:59.9]} 35. Qxf5 {[%clk 0:01:11.4]} 35... Qxc5 {[%clk
0:00:59.3]} 36. Qxe5+ {[%clk 0:01:11.6]} 36... Kg8 {[%clk 0:00:56.7]} 37. Red4
{[%clk 0:00:55.2]} 37... Qxa3 {[%clk 0:00:53.4]} 38. d6 {[%clk 0:00:51]} 38...
Qf3+ {[%clk 0:00:53]} 39. Kg1 {[%clk 0:00:50.9]} 39... Re6 {[%clk 0:00:51.4]}
40. Qf4 {[%clk 0:00:48.3]} 40... Qe2 {[%clk 0:00:34.9]} 41. Qg4+ {[%clk
0:00:45.8]} 41... Qxg4 {[%clk 0:00:33.8]} 42. Rxg4+ {[%clk 0:00:46.7]} 42... Kf8
{[%clk 0:00:33.4]} 43. Rgd4 {[%clk 0:00:47.2]} 43... Ke8 {[%clk 0:00:33.4]} 44.
Kf2 {[%clk 0:00:40.1]} 44... Kd7 {[%clk 0:00:31]} 45. R4d3 {[%clk 0:00:38.5]}
45... Rc8 {[%clk 0:00:30]} 46. Rf3 {[%clk 0:00:33.1]} 46... f6 {[%clk
0:00:28.7]} 47. Rfd3 {[%clk 0:00:17]} 47... Rc6 {[%clk 0:00:25.9]} 48. Ra1
{[%clk 0:00:16.8]} 48... Rexd6 {[%clk 0:00:24.5]} 49. Rxd6+ {[%clk 0:00:17.7]}
49... Kxd6 {[%clk 0:00:24.5]} 50. Kf3 {[%clk 0:00:18.2]} 50... Kc7 {[%clk
0:00:21]} 51. Kg4 {[%clk 0:00:18.1]} 51... Kb6 {[%clk 0:00:20.7]} 52. h4 {[%clk
0:00:16.2]} 52... a5 {[%clk 0:00:20.3]} 53. Kf5 {[%clk 0:00:16.5]} 53... Kb5
{[%clk 0:00:19.7]} 54. Kg6 {[%clk 0:00:16.9]} 54... a4 {[%clk 0:00:17.2]} 55.
Kxh6 {[%clk 0:00:16.5]} 55... Kb4 {[%clk 0:00:16.9]} 56. Kg7 {[%clk 0:00:16]}
56... Rc3 {[%clk 0:00:14.5]} 57. g4 {[%clk 0:00:15.6]} 57... Rg3 {[%clk
0:00:14]} 58. Kxf6 {[%clk 0:00:15.2]} 58... Rxg4 {[%clk 0:00:13.8]} 59. h5
{[%clk 0:00:15.7]} 59... Rh4 {[%clk 0:00:13.6]} 60. Kg6 {[%clk 0:00:15.7]} 60...
a3 {[%clk 0:00:12]} 61. h6 {[%clk 0:00:15.5]} 61... Kb3 {[%clk 0:00:11.8]} 62.
h7 {[%clk 0:00:14.3]} 62... Kb2 {[%clk 0:00:10.9]} 63. Rxa3 {[%clk 0:00:14.3]}
63... Kxa3 {[%clk 0:00:10.6]} 64. Kg7 {[%clk 0:00:15.2]} 64... Rxh7+ {[%clk
0:00:10.2]} 65. Kxh7 {[%clk 0:00:16.1]} 1/2-1/2

[Event "Late-Titled-Tuesday-Blitz-April-23-2024"]
[Site "Chess.com"]
[Date "2024.04.23"]
[Round "3"]
[White "ImportedItalianMaple"]
[Black "Navyblue1"]
[Result "1/2-1/2"]
[WhiteElo "2464"]
[BlackElo "2267"]
[TimeControl "180+1"]
[EndTime "14:30:34 PDT"]
[Termination "Game drawn by stalemate"]

1. e4 {[%clk 0:03:00.9]} 1... c5 {[%clk 0:02:59.1]} 2. Nf3 {[%clk 0:03:01.2]}
2... d6 {[%clk 0:02:49.9]} 3. Bc4 {[%clk 0:02:56.6]} 3... Nf6 {[%clk 0:02:45.9]}
4. d3 {[%clk 0:02:52.6]} 4... a6 {[%clk 0:02:45.8]} 5. a4 {[%clk 0:02:52.4]}
5... g6 {[%clk 0:02:44.4]} 6. O-O {[%clk 0:02:51.2]} 6... Bg7 {[%clk 0:02:45]}
7. e5 {[%clk 0:02:50.8]} 7... dxe5 {[%clk 0:02:44.3]} 8. Nxe5 {[%clk 0:02:51.7]}
8... O-O {[%clk 0:02:44.2]} 9. Re1 {[%clk 0:02:49.9]} 9... e6 {[%clk 0:02:41.2]}
10. c3 {[%clk 0:02:47.9]} 10... Nd5 {[%clk 0:02:38.3]} 11. a5 {[%clk 0:02:42.6]}
11... Nd7 {[%clk 0:02:36.4]} 12. Nxd7 {[%clk 0:02:38.3]} 12... Bxd7 {[%clk
0:02:34.1]} 13. Nd2 {[%clk 0:02:37.3]} 13... Nf6 {[%clk 0:02:22]} 14. Ne4 {[%clk
0:02:28]} 14... Nxe4 {[%clk 0:02:20.8]} 15. dxe4 {[%clk 0:02:28.9]} 15... Bc6
{[%clk 0:02:17.6]} 16. Qe2 {[%clk 0:02:28.7]} 16... b6 {[%clk 0:01:37.9]} 17.
axb6 {[%clk 0:02:27.7]} 17... a5 {[%clk 0:01:36.9]} 18. Bb5 {[%clk 0:02:10.1]}
18... Qxb6 {[%clk 0:01:35.1]} 19. Bxc6 {[%clk 0:02:10.4]} 19... Qxc6 {[%clk
0:01:36]} 20. Qc4 {[%clk 0:02:10.4]} 20... Rfb8 {[%clk 0:01:32.5]} 21. Ra2
{[%clk 0:02:09.2]} 21... Qb5 {[%clk 0:01:27.7]} 22. Ra4 {[%clk 0:01:58.3]} 22...
Qxc4 {[%clk 0:01:18.8]} 23. Rxc4 {[%clk 0:01:59.2]} 23... Rb5 {[%clk 0:01:17.8]}
24. Kf1 {[%clk 0:01:45.9]} 24... Bf8 {[%clk 0:00:59.6]} 25. Ke2 {[%clk
0:01:45.4]} 25... f6 {[%clk 0:00:58]} 26. Kd3 {[%clk 0:01:45.2]} 26... Kf7
{[%clk 0:00:54.1]} 27. Kc2 {[%clk 0:01:45]} 27... Rab8 {[%clk 0:00:52.9]} 28.
Rd1 {[%clk 0:01:41.6]} 28... Ke8 {[%clk 0:00:51.6]} 29. f4 {[%clk 0:01:36.5]}
29... Be7 {[%clk 0:00:49.3]} 30. f5 {[%clk 0:01:31.7]} 30... e5 {[%clk 0:00:45]}
31. fxg6 {[%clk 0:01:25.4]} 31... hxg6 {[%clk 0:00:44.6]} 32. Ra4 {[%clk
0:01:22]} 32... R8b7 {[%clk 0:00:33.3]} 33. g4 {[%clk 0:01:20]} 33... Kf7 {[%clk
0:00:30.4]} 34. h4 {[%clk 0:01:16.5]} 34... Rb8 {[%clk 0:00:22.5]} 35. Rd7
{[%clk 0:01:14.4]} 35... Ke6 {[%clk 0:00:21.9]} 36. Ra7 {[%clk 0:01:13.2]} 36...
Rh8 {[%clk 0:00:21.7]} 37. h5 {[%clk 0:00:57.8]} 37... gxh5 {[%clk 0:00:20.9]}
38. gxh5 {[%clk 0:00:58.7]} 38... Rxh5 {[%clk 0:00:21]} 39. Ra6+ {[%clk
0:00:56.8]} 39... Kf7 {[%clk 0:00:20.3]} 40. R4xa5 {[%clk 0:00:57.1]} 40... Rxa5
{[%clk 0:00:20.8]} 41. Rxa5 {[%clk 0:00:57.9]} 41... Rh4 {[%clk 0:00:20.6]} 42.
Kd3 {[%clk 0:00:47.7]} 42... c4+ {[%clk 0:00:20.2]} 43. Kxc4 {[%clk 0:00:43.7]}
43... Rxe4+ {[%clk 0:00:19.2]} 44. Kd5 {[%clk 0:00:44.2]} 44... Re1 {[%clk
0:00:18.9]} 45. Bh6 {[%clk 0:00:41.6]} 45... Kg6 {[%clk 0:00:18.8]} 46. Ra7
{[%clk 0:00:39.7]} 46... Kxh6 {[%clk 0:00:17.7]} 47. Rxe7 {[%clk 0:00:39.4]}
47... Rb1 {[%clk 0:00:17]} 48. b4 {[%clk 0:00:39.4]} 48... Kg6 {[%clk
0:00:16.5]} 49. Kc5 {[%clk 0:00:36.4]} 49... Kf5 {[%clk 0:00:16.5]} 50. b5
{[%clk 0:00:36.2]} 50... e4 {[%clk 0:00:16.7]} 51. b6 {[%clk 0:00:36.1]} 51...
Kf4 {[%clk 0:00:16.8]} 52. c4 {[%clk 0:00:36.1]} 52... e3 {[%clk 0:00:16.8]} 53.
Kc6 {[%clk 0:00:36]} 53... Kf3 {[%clk 0:00:16.7]} 54. c5 {[%clk 0:00:36]} 54...
e2 {[%clk 0:00:17]} 55. b7 {[%clk 0:00:35.9]} 55... Kf2 {[%clk 0:00:17.1]} 56.
Kc7 {[%clk 0:00:33.9]} 56... e1=Q {[%clk 0:00:16.7]} 57. Rxe1 {[%clk 0:00:34.6]}
57... Kxe1 {[%clk 0:00:17.3]} 58. b8=Q {[%clk 0:00:33.1]} 58... Rxb8 {[%clk
0:00:18.2]} 59. Kxb8 {[%clk 0:00:33.9]} 59... f5 {[%clk 0:00:18.9]} 60. c6
{[%clk 0:00:34.8]} 60... f4 {[%clk 0:00:19.6]} 61. c7 {[%clk 0:00:35.7]} 61...
f3 {[%clk 0:00:20]} 62. c8=Q {[%clk 0:00:36.6]} 62... f2 {[%clk 0:00:20.3]} 63.
Qe6+ {[%clk 0:00:35.8]} 63... Kf1 {[%clk 0:00:20.5]} 64. Qg4 {[%clk 0:00:36.3]}
64... Ke1 {[%clk 0:00:20.2]} 65. Qg3 {[%clk 0:00:34.4]} 65... Kf1 {[%clk
0:00:16.3]} 66. Kc7 {[%clk 0:00:33.8]} 66... Ke2 {[%clk 0:00:17]} 67. Qe5+
{[%clk 0:00:28.7]} 67... Kd1 {[%clk 0:00:16.4]} 68. Qd4+ {[%clk 0:00:27.9]}
68... Ke1 {[%clk 0:00:16.7]} 69. Qe3+ {[%clk 0:00:28.4]} 69... Kf1 {[%clk
0:00:17.1]} 70. Kd6 {[%clk 0:00:28.9]} 70... Kg1 {[%clk 0:00:17.1]} 71. Qg3+
{[%clk 0:00:29.4]} 71... Kh1 {[%clk 0:00:16.9]} 72. Qh3+ {[%clk 0:00:29.8]}
72... Kg1 {[%clk 0:00:17.1]} 73. Qg3+ {[%clk 0:00:28.5]} 73... Kh1 {[%clk
0:00:17.4]} 74. Qxf2 {[%clk 0:00:29.2]} 1/2-1/2

[Event "Late-Titled-Tuesday-Blitz-April-23-2024"]
[Site "Chess.com"]
[Date "2024.04.23"]
[Round "3"]
[White "nabukatnezarr"]
[Black "Brahianzevich"]
[Result "0-1"]
[WhiteElo "2625"]
[BlackElo "2471"]
[TimeControl "180+1"]
[EndTime "14:30:39 PDT"]
[Termination "Brahianzevich won on time"]

1. d4 {[%clk 0:03:00.9]} 1... d5 {[%clk 0:02:58.7]} 2. c4 {[%clk 0:02:56.7]}
2... e6 {[%clk 0:02:58.9]} 3. Nc3 {[%clk 0:02:56.1]} 3... Bb4 {[%clk 0:02:59.5]}
4. Nf3 {[%clk 0:02:52.9]} 4... Nf6 {[%clk 0:02:59.4]} 5. g3 {[%clk 0:02:51]}
5... O-O {[%clk 0:02:51.7]} 6. Bg2 {[%clk 0:02:50.9]} 6... dxc4 {[%clk
0:02:35.6]} 7. O-O {[%clk 0:02:49.7]} 7... Bxc3 {[%clk 0:02:31.2]} 8. bxc3
{[%clk 0:02:49.5]} 8... b5 {[%clk 0:02:30.5]} 9. a4 {[%clk 0:01:57.5]} 9... c6
{[%clk 0:02:28.2]} 10. Ba3 {[%clk 0:01:58]} 10... Re8 {[%clk 0:02:27.8]} 11. Qb1
{[%clk 0:01:53.5]} 11... Nd5 {[%clk 0:02:13.6]} 12. Rc1 {[%clk 0:01:52.6]} 12...
a6 {[%clk 0:02:08]} 13. Ne5 {[%clk 0:01:45.5]} 13... f6 {[%clk 0:01:50.3]} 14.
Nf3 {[%clk 0:01:36.6]} 14... Nd7 {[%clk 0:01:46.3]} 15. Bd6 {[%clk 0:01:18.3]}
15... N7b6 {[%clk 0:01:42.6]} 16. Bc5 {[%clk 0:00:59]} 16... Nxa4 {[%clk
0:01:39.1]} 17. Rxa4 {[%clk 0:00:57.7]} 17... bxa4 {[%clk 0:01:40]} 18. Qa2
{[%clk 0:00:57.3]} 18... Qa5 {[%clk 0:01:29.1]} 19. Qxc4 {[%clk 0:00:55.5]}
19... Qb5 {[%clk 0:01:25.4]} 20. Qa2 {[%clk 0:00:51.8]} 20... Qb3 {[%clk
0:01:25.4]} 21. Qa1 {[%clk 0:00:51.3]} 21... Rb8 {[%clk 0:00:51.2]} 22. Ba3
{[%clk 0:00:51.7]} 22... a5 {[%clk 0:00:33.4]} 23. Nd2 {[%clk 0:00:50.5]} 23...
Qb6 {[%clk 0:00:20.5]} 24. e4 {[%clk 0:00:41.6]} 24... Nc7 {[%clk 0:00:15.4]}
25. Nc4 {[%clk 0:00:38]} 25... Qa6 {[%clk 0:00:15.5]} 26. Bf1 {[%clk 0:00:23.8]}
26... Nb5 {[%clk 0:00:12]} 27. Bc5 {[%clk 0:00:21.9]} 27... Qa8 {[%clk 0:00:09]}
28. Qxa4 {[%clk 0:00:20.7]} 28... Ba6 {[%clk 0:00:06.9]} 29. Qxa5 {[%clk
0:00:16.4]} 29... Qb7 {[%clk 0:00:06.2]} 30. Ra1 {[%clk 0:00:14.7]} 30... Ra8
{[%clk 0:00:06.2]} 31. Rb1 {[%clk 0:00:12.9]} 31... Qc7 {[%clk 0:00:04.7]} 32.
Qb4 {[%clk 0:00:08.9]} 32... Reb8 {[%clk 0:00:04]} 33. Rc1 {[%clk 0:00:05.2]}
33... Nxd4 {[%clk 0:00:03.9]} 34. cxd4 {[%clk 0:00:04.8]} 34... Rxb4 {[%clk
0:00:03.8]} 35. Bxb4 {[%clk 0:00:05.7]} 35... Bb5 {[%clk 0:00:04]} 36. Bc5
{[%clk 0:00:06.2]} 36... Ra2 {[%clk 0:00:03.7]} 37. Bd6 {[%clk 0:00:06.1]} 37...
Qa7 {[%clk 0:00:03.4]} 38. Bc5 {[%clk 0:00:06.1]} 38... Qa6 {[%clk 0:00:03.9]}
39. Ne3 {[%clk 0:00:06.2]} 39... Bxf1 {[%clk 0:00:04]} 40. Rxf1 {[%clk 0:00:07]}
40... Qe2 {[%clk 0:00:04.4]} 41. Kg2 {[%clk 0:00:06.7]} 41... h5 {[%clk
0:00:04.8]} 42. h4 {[%clk 0:00:07]} 42... Ra3 {[%clk 0:00:05.2]} 43. Bxa3 {[%clk
0:00:06.8]} 43... Qd3 {[%clk 0:00:05.2]} 44. Bc5 {[%clk 0:00:07.2]} 44... Qxe4+
{[%clk 0:00:05.6]} 45. Kg1 {[%clk 0:00:06.7]} 45... g5 {[%clk 0:00:06.1]} 46.
hxg5 {[%clk 0:00:06.3]} 46... fxg5 {[%clk 0:00:06.5]} 47. Ng2 {[%clk 0:00:07]}
47... h4 {[%clk 0:00:06.6]} 48. gxh4 {[%clk 0:00:07.9]} 48... gxh4 {[%clk
0:00:07.5]} 49. f3 {[%clk 0:00:08.4]} 49... Qg6 {[%clk 0:00:07.1]} 50. Kh2
{[%clk 0:00:08.2]} 50... Qg3+ {[%clk 0:00:06.9]} 51. Kh1 {[%clk 0:00:08.3]}
51... h3 {[%clk 0:00:07.4]} 52. Ne3 {[%clk 0:00:08.3]} 52... Kf7 {[%clk
0:00:06.9]} 53. d5 {[%clk 0:00:03.6]} 53... cxd5 {[%clk 0:00:06.8]} 54. Bd4
{[%clk 0:00:03.7]} 54... Ke8 {[%clk 0:00:06.3]} 55. Bf6 {[%clk 0:00:03.1]} 55...
Qf4 {[%clk 0:00:06.2]} 56. Bc3 {[%clk 0:00:01.8]} 56... Qg3 {[%clk 0:00:05.9]}
57. Be1 {[%clk 0:00:01.9]} 57... Qf4 {[%clk 0:00:05.5]} 58. Nd1 {[%clk
0:00:01.1]} 58... d4 {[%clk 0:00:05.3]} 0-1

[Event "Late-Titled-Tuesday-Blitz-April-23-2024"]
[Site "Chess.com"]
[Date "2024.04.23"]
[Round "3"]
[White "PepeCuenca"]
[Black "Polish_fighter3000"]
[Result "1/2-1/2"]
[WhiteElo "2825"]
[BlackElo "3114"]
[TimeControl "180+1"]
[EndTime "14:30:40 PDT"]
[Termination "Game drawn by repetition"]

1. d4 {[%clk 0:03:00.9]} 1... d5 {[%clk 0:02:58.7]} 2. Bf4 {[%clk 0:03:01.5]}
2... Bf5 {[%clk 0:02:54.6]} 3. e3 {[%clk 0:03:02]} 3... e6 {[%clk 0:02:54.4]} 4.
c4 {[%clk 0:03:02.7]} 4... Bxb1 {[%clk 0:02:52.8]} 5. Qa4+ {[%clk 0:03:02.9]}
5... Nc6 {[%clk 0:02:31.8]} 6. Rxb1 {[%clk 0:03:00.1]} 6... Bb4+ {[%clk
0:02:31.9]} 7. Kd1 {[%clk 0:02:57.3]} 7... Ne7 {[%clk 0:02:08.5]} 8. Nf3 {[%clk
0:02:51.8]} 8... dxc4 {[%clk 0:01:43.8]} 9. Bxc4 {[%clk 0:02:50.1]} 9... O-O
{[%clk 0:01:40]} 10. Ke2 {[%clk 0:02:49.1]} 10... a6 {[%clk 0:01:40]} 11. Qc2
{[%clk 0:02:45.8]} 11... Bd6 {[%clk 0:01:35.5]} 12. Bg3 {[%clk 0:02:35.4]} 12...
Nf5 {[%clk 0:01:30.7]} 13. Rbd1 {[%clk 0:02:28.3]} 13... Qf6 {[%clk 0:01:06.3]}
14. a3 {[%clk 0:02:12.3]} 14... h5 {[%clk 0:00:59.2]} 15. Bd3 {[%clk 0:02:05.9]}
15... Rfe8 {[%clk 0:00:34.8]} 16. Be4 {[%clk 0:01:58.8]} 16... h4 {[%clk
0:00:28.6]} 17. Bxf5 {[%clk 0:01:49.1]} 17... hxg3 {[%clk 0:00:21.8]} 18. Be4
{[%clk 0:01:30.6]} 18... gxf2 {[%clk 0:00:21]} 19. Bxc6 {[%clk 0:01:30.1]} 19...
bxc6 {[%clk 0:00:21.9]} 20. Qxc6 {[%clk 0:01:24.6]} 20... Rab8 {[%clk
0:00:19.8]} 21. Rd2 {[%clk 0:01:24.9]} 21... e5 {[%clk 0:00:09.7]} 22. dxe5
{[%clk 0:01:23.9]} 22... Bxe5 {[%clk 0:00:10.6]} 23. Qxf6 {[%clk 0:01:22.6]}
23... Bxf6 {[%clk 0:00:11.5]} 24. b4 {[%clk 0:01:11.1]} 24... c5 {[%clk
0:00:07.9]} 25. bxc5 {[%clk 0:01:04.8]} 25... Rb3 {[%clk 0:00:06.4]} 26. Rd3
{[%clk 0:01:05.2]} 26... Rb2+ {[%clk 0:00:04.7]} 27. Rd2 {[%clk 0:01:05.8]}
27... Rb3 {[%clk 0:00:04.6]} 28. Rd3 {[%clk 0:00:59.5]} 28... Rxd3 {[%clk
0:00:03]} 29. Kxd3 {[%clk 0:00:59.5]} 29... Rc8 {[%clk 0:00:03.6]} 30. Nd2
{[%clk 0:00:42.2]} 30... Rxc5 {[%clk 0:00:03.3]} 31. Ne4 {[%clk 0:00:40.4]}
31... Rf5 {[%clk 0:00:02.4]} 32. Rf1 {[%clk 0:00:24.5]} 32... Be7 {[%clk
0:00:02]} 33. a4 {[%clk 0:00:20.3]} 33... Rd5+ {[%clk 0:00:02.6]} 34. Kc4 {[%clk
0:00:16.6]} 34... Ra5 {[%clk 0:00:03.1]} 35. Nc3 {[%clk 0:00:09.5]} 35... Rf5
{[%clk 0:00:03.2]} 36. Ne4 {[%clk 0:00:08.4]} 36... Ra5 {[%clk 0:00:03.5]} 37.
Nc3 {[%clk 0:00:08.8]} 37... Re5 {[%clk 0:00:03.3]} 38. Nd5 {[%clk 0:00:07.6]}
38... Bg5 {[%clk 0:00:01.9]} 39. Rxf2 {[%clk 0:00:07.5]} 39... Re4+ {[%clk
0:00:02.1]} 40. Kb3 {[%clk 0:00:06.1]} 40... Re5 {[%clk 0:00:02.5]} 41. Kc4
{[%clk 0:00:05.9]} 41... Re4+ {[%clk 0:00:02.6]} 42. Kb3 {[%clk 0:00:06.5]}
42... Re5 {[%clk 0:00:03.2]} 43. Rd2 {[%clk 0:00:06.5]} 43... Bxe3 {[%clk
0:00:03]} 44. Nxe3 {[%clk 0:00:05.6]} 44... Rxe3+ {[%clk 0:00:03.9]} 45. Kb4
{[%clk 0:00:06.3]} 45... Re5 {[%clk 0:00:03.2]} 46. Rc2 {[%clk 0:00:03.9]} 46...
a5+ {[%clk 0:00:03.2]} 47. Kb3 {[%clk 0:00:03.7]} 47... g5 {[%clk 0:00:03.2]}
48. Kc4 {[%clk 0:00:03.3]} 48... f5 {[%clk 0:00:02.6]} 49. Rd2 {[%clk
0:00:03.6]} 49... Kf7 {[%clk 0:00:03]} 50. Rd5 {[%clk 0:00:03.6]} 50... Re4+
{[%clk 0:00:03.3]} 51. Kb5 {[%clk 0:00:03.8]} 51... Ke6 {[%clk 0:00:03.9]} 52.
Rc5 {[%clk 0:00:03.7]} 52... Re2 {[%clk 0:00:04]} 53. g4 {[%clk 0:00:03.7]}
53... fxg4 {[%clk 0:00:03]} 54. Rxg5 {[%clk 0:00:03.7]} 54... Rg2 {[%clk
0:00:02.8]} 55. Kxa5 {[%clk 0:00:02.7]} 55... Kf6 {[%clk 0:00:03.4]} 56. Rg8
{[%clk 0:00:02.6]} 56... Kf7 {[%clk 0:00:03.4]} 57. Rg5 {[%clk 0:00:02.8]} 57...
Kf6 {[%clk 0:00:03.5]} 58. Rg8 {[%clk 0:00:03.5]} 58... Kf7 {[%clk 0:00:03.7]}
59. Rg5 {[%clk 0:00:03.8]} 59... Kf6 {[%clk 0:00:03.6]} 1/2-1/2